[Event "FIDE WSTC-50-65 2022"]
[Site "Acqui Terme"]
[Date "2022.06.22"]
[Round "3.12"]
[White "Herbrechtsmeier, Christof"]
[Black "Povah, Nigel E"]
[Result "1/2-1/2"]
[ECO "B13"]
[WhiteElo "2147"]
[BlackElo "2201"]
[Annotator "NA RC"]
[PlyCount "58"]
[EventDate "2022.06.20"]
[EventType "team-tourn"]
[EventCountry "ITA"]
[SourceTitle "playchess.com"]
[Source "ChessBase"]
[SourceQuality "1"]
[TimeControl "40/5400+30:1800+30"]

1. e4 {[%emt 0:01:00]} c6 {[%emt 0:01:00]} 2. d4 {[%emt 0:00:30]} d5 {[%emt 0:00:00]} 3. exd5 {[%emt 0:00:30]} cxd5 {[%emt 0:00:00]} 4. Bd3 {[%emt 0:00:30]} Nc6 {[%emt 0:00:30]} 5. c3 {[%emt 0:00:30]} Nf6 {[%emt 0:00:00]} 6. h3 {[%emt 0:00:30]} g6 {[%emt 0:02:00]} 7. Nf3 {[%emt 0:00:30]} Bf5 {[%emt 0:00:30]} 8. Bf4 {[%emt 0:02:30]} Bxd3 {[%emt 0:02:30]} 9. Qxd3 {[%emt 0:00:30]} Bg7 {[%emt 0:00:30]} 10. Nbd2 {[%emt 0:01:30]} O-O {[%emt 0:00:30]} 11. O-O {[%emt 0:00:30]} Qb6 {[%emt 0:01:30]} 12. Rab1 {[%emt 0:02:30]} Rac8 {[%emt 0:01:30]} 13. Rfe1 {[%emt 0:00:00]} Rfe8 {[%emt 0:00:00]} 14. Ne5 {[%emt 0:01:00]} Nxe5 {[%emt 0:10:00]} 15. Bxe5 {[%emt 0:13:30]} Nd7 {[%emt 0:09:30]} 16. Bxg7 {[%emt 0:06:30]} Kxg7 {[%emt 0:00:30]} 17. Nf3 {[%emt 0:00:30]} e6 {[%emt 0:06:30]} 18. Qe3 {[%emt 0:05:30]} Qd6 {[%emt 0:05:30]} 19. Ne5 {[%emt 0:04:30]} Nxe5 {[%emt 0:00:30]} 20. dxe5 {[%emt 0:01:30]} Qc5 {[%emt 0:00:30]} 21. Qf4 {[%emt 0:01:30]} Qe7 {[%emt 0:02:30]} 22. Rbd1 {[%emt 0:01:30]} Rc4 {[%emt 0:05:30]} 23. Rd4 {[%emt 0:01:30]} Rec8 {[%emt 0:04:30]} 24. Re3 {[%emt 0:04:30]} b5 {[%emt 0:02:30]} 25. a3 {[%emt 0:01:30]} a5 {[%emt 0:00:30]} 26. Red3 {[%emt 0:03:30]} b4 {[%emt 0:02:30]} 27. cxb4 {[%emt 0:03:30]} axb4 {[%emt 0:00:00]} 28. a4 {[%emt 0:00:00]} b3 {[%emt 0:09:00]} 29. a5 {[%emt 0:06:00]} Qa7 1/2-1/2

[Event "FIDE WSTC-50-65 2022"]
[Site "Acqui Terme"]
[Date "2022.06.22"]
[Round "3.13"]
[White "Hardicsay, Peter"]
[Black "Knaak, Rainer"]
[Result "0-1"]
[ECO "C07"]
[WhiteElo "2192"]
[BlackElo "2479"]
[Annotator "TA"]
[PlyCount "122"]
[EventDate "2022.06.20"]
[EventType "team-tourn"]
[EventCountry "ITA"]
[SourceTitle "playchess.com"]
[Source "ChessBase"]
[SourceQuality "1"]
[TimeControl "40/5400+30:1800+30"]

{[%evp 23,122,7,7,-13,0,-7,-10,-9,-16,-14,0,-20,-15,-33,-33,-24,-33,-38,-36,-37,-38,-33,-30,-32,-22,-30,-25,-25,-25,-33,-16,-14,-12,-10,-10,-10,-7,-8,0,-11,0,0,0,0,0,0,0,0,0,0,0,0,0,0,0,-28,-31,-44,-42,-58,-58,-58,-58,-58,-58,-58,-14,-14,-8,-8,-8,-8,-8,-58,-58,-287,-310,-280,-136,-135,-91,-408,-302,-405,-387,-699,-699,-699,-72,-72,-72,-72,-72,-72,-72,-72,-72,-29977,-29978,-29974,-29977]} 1. e4 {[%emt 0:01:00]} e6 {[%emt 0:01:00]} 2. d4 {[%emt 0:00:00]} d5 {[%emt 0:00:00]} 3. Nd2 {[%emt 0:00:00]} c5 {[%emt 0:00:00]} 4. Ngf3 {[%emt 0:00:30]} cxd4 {[%emt 0:00:30]} 5. exd5 {[%emt 0:02:30]} Qxd5 {[%emt 0:00:30]} 6. Bc4 {[%emt 0:01:30]} Qd6 {[%emt 0:00:30]} 7. O-O {[%emt 0:00:30]} Nf6 {[%emt 0:00:30]} 8. Nb3 {[%emt 0:00:30]} Nc6 {[%emt 0:00:00]} 9. Nbxd4 {[%emt 0:01:30]} Nxd4 {[%emt 0:00:00]} 10. Qxd4 {[%emt 0:00:30]} Qxd4 {[%emt 0:00:30]} 11. Nxd4 {[%emt 0:00:00]} a6 {[%emt 0:00:30]} 12. a4 {[%emt 0:09:00]} Bd7 {[%emt 0:03:30][%cal Bc8d7,Bd7c6,Bc6e4,Be4f5][%mdl 32]} 13. b3 {[%emt 0:06:30] C07: French Tarrasch: 3...c5, 4 Ngf3 and 4 exd5 Qxd5.} Rc8 {[%emt 0:12:30]} 14. Bb2 {[%emt 0:13:30]} Bb4 {[%emt 0:12:30] [#]} 15. Nf3 $146 {[%emt 0:08:30] The position is equal.} ({Predecessor:} 15. Rfd1 Ne4 16. f3 Nc3 17. Rd3 Nxa4 18. bxa4 Rxc4 19. Rad1 O-O 20. Nf5 Bxa4 21. Ne3 Rcc8 {0-1 (21) Fernandez,J (2153)-Malakhatko,V (2529) Warsaw 2003}) 15... Bc6 {[%emt 0:01:30]} 16. Ne5 {[%emt 0:03:30]} Be4 {[%emt 0:00:30]} 17. Nd3 {[%emt 0:01:30]} Be7 {[%emt 0:06:30]} 18. Rae1 {[%emt 0:04:30]} Bf5 {[%emt 0:01:30]} 19. Re2 {[%emt 0:00:30]} O-O {[%emt 0:01:30]} 20. Ne5 {[%emt 0:08:30]} Rfd8 {[%emt 0:11:30]} 21. Bd3 {[%emt 0:04:30]} Bxd3 {[%emt 0:00:30]} 22. Nxd3 {[%emt 0:00:30]} Kf8 {[%emt 0:01:30]} 23. g3 {[%emt 0:00:30]} Nd5 {[%emt 0:11:30]} 24. Kg2 {[%emt 0:10:30]} Nc3 {[%emt 0:08:30]} 25. Bxc3 {[%emt 0:03:49]} Rxc3 {[%emt 0:00:00]} 26. Rd1 {[%emt 0:01:12]} Rdc8 {[%emt 0:12:15]} 27. Ne1 {[%emt 0:00:47]} R8c7 {[%emt 0:00:40]} 28. Rd3 {[%emt 0:02:19]} Bf6 {[%emt 0:00:39]} 29. Rxc3 {[%emt 0:01:31]} Bxc3 $11 {[%emt 0:00:09][%mdl 4096] Endgame KRB-KRN} 30. Nd3 {[%emt 0:00:24]} Ke7 {[%emt 0:00:31]} 31. f4 {[%emt 0:00:57]} Kd6 {[%emt 0:00:35]} 32. Kf3 {[%emt 0:02:49]} Kd5 {[%emt 0:00:21]} 33. g4 {[%emt 0:01:38]} b5 {[%emt 0:03:13]} 34. axb5 {[%emt 0:00:37]} axb5 {[%emt 0:00:06]} 35. Nf2 {[%emt 0:03:06]} Kc5 {[%emt 0:05:56]} 36. Nd3+ {[%emt 0:03:51]} Kd5 {[%emt 0:00:02]} 37. Nf2 {[%emt 0:00:08]} f6 {[%emt 0:03:18]} 38. Nd1 {[%emt 0:01:53]} e5 {[%emt 0:01:19]} 39. fxe5 {[%emt 0:01:06]} fxe5 {[%emt 0:00:58]} 40. Ne3+ {[%emt 0:00:00]} Ke6 {[%emt 0:00:00]} 41. Nf1 {[%emt 0:10:23]} Rf7+ {[%emt 0:04:28]} 42. Kg2 {[%emt 0:00:30]} Rf4 {[%emt 0:00:30]} 43. h3 {[%emt 0:00:30]} g6 {[%emt 0:04:30]} 44. Re3 {[%emt 0:13:46]} Bd4 {[%emt 0:02:30]} 45. Rf3 {[%emt 0:01:26]} Re4 {[%emt 0:01:30] Threatens to win with ...Re2+.} 46. Ng3 {[%emt 0:00:11] Prevents Re2+.} Re1 {[%emt 0:00:30] Threatening ...Rg1+.} 47. Rf1 {[%emt 0:00:05] Against Rg1+} Rxf1 {[%emt 0:02:30]} 48. Nxf1 {[%emt 0:02:28] KB-KN} ({Better is} 48. Kxf1 $11 Kd5 49. Ke2) 48... e4 $15 {[%emt 0:00:49][%cal Be5e4,Be4e3][%mdl 32]} 49. c4 $2 {[%emt 0:02:08]} (49. Ng3 $1 $15) 49... b4 $1 $19 {[%emt 0:03:02]} 50. Ng3 {[%emt 0:01:00]} Ke5 {[%emt 0:00:09]} 51. Ne2 {[%emt 0:00:11]} Bc5 {[%emt 0:00:54]} 52. Kg3 $2 {[%emt 0:00:29][%mdl 8192]} (52. h4 $17 {nothing else works.}) 52... e3 {[%emt 0:09:35]} 53. Kf3 {[%emt 0:00:10]} g5 {[%emt 0:00:09]} 54. Ng3 $2 {[%emt 0:02:32]} (54. Nc1 Kd4 55. Ke2) 54... Kd4 {[%emt 0:00:18] White must now prevent ...Kd3.} 55. Ke2 {[%emt 0:00:08]} Bf8 $2 {[%emt 0:01:54]} (55... Ba7 $19 {is more deadly.} 56. Kd1 Kc3) 56. Nf5+ $17 {[%emt 0:01:23]} Kc3 {[%emt 0:00:05]} 57. Kxe3 {[%emt 0:00:53]} Kxb3 {[%emt 0:00:54]} 58. Kd4 {[%emt 0:00:37] [#] aiming for c5.} Ka4 $1 {[%emt 0:02:54] Hoping for ...b3.} 59. c5 {[%emt 0:01:19] [#] And now c6 would win.} Kb5 {[%emt 0:00:06]} 60. Nd6+ $2 {[%emt 0:00:09][%mdl 8192]} (60. c6 $17 Kxc6 61. Kc4) 60... Bxd6 {[%emt 0:00:51]} 61. cxd6 {[%emt 0:00:12]} Kc6 {[%emt 0:00:09] Weighted Error Value: White=0.41/Black=0.20 (precise)} 0-1

[Event "FIDE WSTC-50-65 2022"]
[Site "Acqui Terme"]
[Date "2022.06.22"]
[Round "3.14"]
[White "Chevelevitch, Evgueni"]
[Black "Glatt, Gabor"]
[Result "1/2-1/2"]
[ECO "C41"]
[WhiteElo "2369"]
[BlackElo "2243"]
[Annotator "TA"]
[PlyCount "37"]
[EventDate "2022.06.20"]
[EventType "team-tourn"]
[EventCountry "ITA"]
[SourceTitle "playchess.com"]
[Source "ChessBase"]
[SourceQuality "1"]
[TimeControl "40/5400+30:1800+30"]

{[%evp 19,37,43,31,0,0,0,23,0,0,0,0,0,8,0,0,-39,-39,-41,-37,-35]} 1. e4 d6 2. d4 Nf6 3. Nc3 Nbd7 4. Nf3 e5 5. Bc4 Be7 6. O-O O-O 7. Re1 c6 8. a4 a5 9. Ba2 h6 {[%emt 0:13:00]} 10. h3 {[%emt 0:16:30]} Re8 {[%emt 0:10:30]} 11. dxe5 {C41: Philidor Defence.} dxe5 12. Nh4 {[%emt 0:14:00]} Nc5 {[%emt 0:07:00] [#]} 13. Nf5 $146 {[%emt 0:22:30] White has an edge.} ({Predecessor:} 13. Qf3 Ne6 14. Nf5 Nd4 15. Nxd4 Qxd4 16. Be3 Qd6 17. Rad1 Qc7 18. Qg3 Kf8 19. Rd3 {½-½ (28) Cruz Ravina,F (2345)-Paunovic,D (2521) Pamplona 2012}) 13... Bxf5 {[%emt 0:26:30]} 14. exf5 {[%emt 0:00:30]} Qxd1 {[%emt 0:02:30]} 15. Rxd1 {[%emt 0:00:30]} Na6 {[%emt 0:01:30]} 16. Kf1 {[%emt 0:06:30]} Bc5 {[%emt 0:03:30]} 17. Be3 {[%emt 0:05:30]} Bxe3 {[%emt 0:01:30]} 18. fxe3 {[%emt 0:00:00]} Red8 {[%emt 0:01:30]} 19. Ke2 {[%emt 0:04:00] Weighted Error Value: White=0.17 (very precise) /Black=0.03 (flawless)} 1/2-1/2

[Event "FIDE WSTC-50-65 2022"]
[Site "Acqui Terme"]
[Date "2022.06.22"]
[Round "3.15"]
[White "Dory, Jeno"]
[Black "Kiefer, Gerhard"]
[Result "1/2-1/2"]
[ECO "B22"]
[WhiteElo "2196"]
[BlackElo "2224"]
[Annotator "NA RC"]
[PlyCount "57"]
[EventDate "2022.06.20"]
[EventType "team-tourn"]
[EventCountry "ITA"]
[SourceTitle "playchess.com"]
[Source "ChessBase"]
[SourceQuality "1"]
[TimeControl "40/5400+30:1800+30"]

1. e4 {[%emt 0:01:00]} c5 {[%emt 0:02:00]} 2. Nf3 {[%emt 0:00:30]} e6 {[%emt 0:00:30]} 3. c3 {[%emt 0:00:30]} Nf6 {[%emt 0:00:30]} 4. e5 {[%emt 0:00:30]} Nd5 {[%emt 0:00:00]} 5. d4 {[%emt 0:00:30]} cxd4 {[%emt 0:00:00]} 6. cxd4 {[%emt 0:00:00]} b6 {[%emt 0:00:30]} 7. Nc3 {[%emt 0:03:00]} Bb7 {[%emt 0:00:30]} 8. Bd3 {[%emt 0:01:30]} Na6 {[%emt 0:02:30]} 9. O-O {[%emt 0:01:30]} Nab4 {[%emt 0:01:30]} 10. Be2 {[%emt 0:12:30]} Rc8 {[%emt 0:06:30]} 11. Bd2 {[%emt 0:09:30]} Be7 {[%emt 0:21:30]} 12. a3 {[%emt 0:02:30]} Nxc3 {[%emt 0:01:30]} 13. bxc3 {[%emt 0:00:30]} Nc6 {[%emt 0:00:00]} 14. Qa4 {[%emt 0:17:30]} O-O {[%emt 0:11:00]} 15. Rac1 {[%emt 0:07:30]} d6 {[%emt 0:01:30]} 16. Bf4 {[%emt 0:03:30]} Na5 {[%emt 0:04:30]} 17. exd6 {[%emt 0:02:30]} Bxd6 {[%emt 0:00:30]} 18. Bxd6 {[%emt 0:05:30]} Qxd6 {[%emt 0:00:30]} 19. Ne5 {[%emt 0:02:30]} f6 {[%emt 0:02:30]} 20. Nc4 {[%emt 0:01:30]} Nxc4 {[%emt 0:00:30]} 21. Bxc4 {[%emt 0:00:00]} Bd5 {[%emt 0:02:30]} 22. Bxd5 {[%emt 0:01:00]} exd5 {[%emt 0:00:30]} 23. Rfe1 {[%emt 0:02:30]} Rc7 {[%emt 0:09:30]} 24. Re3 {[%emt 0:00:30]} Qd7 {[%emt 0:04:30]} 25. Qb3 {[%emt 0:02:30]} Qc6 {[%emt 0:01:30]} 26. h3 {[%emt 0:00:30]} Qc4 {[%emt 0:00:30]} 27. Qb1 {[%emt 0:02:30]} g6 {[%emt 0:01:30]} 28. Rce1 {[%emt 0:01:24]} Rff7 {[%emt 0:00:00]} 29. h4 {[%emt 0:01:04]} 1/2-1/2

[Event "FIDE WSTC-50-65 2022"]
[Site "Acqui Terme"]
[Date "2022.06.22"]
[Round "3.16"]
[White "Kierzek, Matthias"]
[Black "Szabolcsi, Janos"]
[Result "1/2-1/2"]
[ECO "B08"]
[WhiteElo "2224"]
[BlackElo "2233"]
[Annotator "TA"]
[PlyCount "123"]
[EventDate "2022.06.20"]
[EventType "team-tourn"]
[EventCountry "ITA"]
[SourceTitle "playchess.com"]
[Source "ChessBase"]
[SourceQuality "1"]
[TimeControl "40/5400+30:1800+30"]

{[%evp 23,123,48,54,67,63,17,16,10,10,16,20,10,27,22,21,16,18,14,23,6,9,3,30,29,27,12,20,9,14,0,-10,-11,-11,-207,-212,-243,-241,-241,-233,-252,-199,-210,-206,-193,-185,-204,-150,-229,-139,-214,-214,-212,-210,-208,-181,-459,-457,-419,-431,-437,-430,-404,-122,-122,-121,-114,-101,-395,-374,-356,0,-10,0,0,0,0,0,0,0,0,0,-12,-12,-12,0,0,0,0,0,0,0,0,0,0,0,0,0,0,0,0,0,0]} 1. d4 {[%emt 0:01:00]} d6 {[%emt 0:01:00]} 2. e4 {[%emt 0:00:00]} Nf6 {[%emt 0:00:00]} 3. Nc3 {[%emt 0:00:00]} g6 {[%emt 0:00:00]} 4. Be3 {[%emt 0:00:30]} c6 {[%emt 0:00:30]} 5. Nf3 {[%emt 0:01:30]} Bg7 {[%emt 0:00:30]} 6. h3 {[%emt 0:03:30]} O-O {[%emt 0:01:30]} 7. Be2 {[%emt 0:04:30]} Nbd7 {[%emt 0:00:30]} 8. O-O {[%emt 0:01:30]} Qc7 {[%emt 0:00:30]} 9. a4 {[%emt 0:03:30]} a5 {[%emt 0:00:30]} 10. Qd2 {[%emt 0:03:30]} Re8 {[%emt 0:02:30]} 11. Rad1 {[%emt 0:06:30]} e5 {[%emt 0:01:30]} 12. dxe5 {[%emt 0:01:30]} dxe5 {[%emt 0:00:30]} 13. Bc4 {[%emt 0:00:30] B08: Pirc Defence: Classical System.} Nf8 $1 {[%emt 0:02:30]} 14. Ng5 {[%emt 0:07:30] White is more active.} (14. Bc5 $14) 14... Ne6 $11 {[%emt 0:00:30]} 15. Nxe6 {[%emt 0:01:30]} Bxe6 {[%emt 0:00:30]} 16. Bxe6 {[%emt 0:00:00]} Rxe6 {[%emt 0:00:30] [#]} 17. Qd3 $146 {[%emt 0:01:00]} ({Predecessor:} 17. f3 Ree8 18. Qf2 Nh5 19. Rd2 Red8 20. Rxd8+ Qxd8 21. Rd1 Qe8 22. Bb6 Nf4 23. Qd2 {1-0 (42) Tokhirjonova,G (2329)-Huang,Q (2438) Riadh 2017}) 17... Qe7 {[%emt 0:05:30]} 18. b3 {[%emt 0:18:30]} Bf8 {[%emt 0:02:30]} 19. Bg5 {[%emt 0:08:30]} h6 {[%emt 0:02:30]} 20. Bc1 {[%emt 0:02:30]} Qb4 {[%emt 0:01:30]} 21. Qf3 {[%emt 0:01:30]} Kg7 {[%emt 0:09:30]} 22. Rd3 {[%emt 0:06:30]} Rd6 {[%emt 0:03:30]} 23. Rxd6 {[%emt 0:00:30]} Qxd6 {[%emt 0:00:30]} 24. Rd1 {[%emt 0:00:30]} Qe7 {[%emt 0:02:30]} ({Don't take} 24... Qc5 25. Bxh6+ $1 {[%mdl 512]} Kxh6 26. Qxf6 $16) 25. Ne2 {[%emt 0:14:41]} Rd8 {[%emt 0:01:30]} 26. Rxd8 {[%emt 0:00:39]} Qxd8 {[%emt 0:00:00]} 27. Ng3 {[%emt 0:00:36]} Bc5 {[%emt 0:03:00]} 28. Be3 $2 {[%emt 0:03:05]} (28. Qe2 $11 {and White has nothing to worry.}) 28... Bxe3 $19 {[%emt 0:02:30]} 29. Qxe3 {[%emt 0:00:06][%mdl 4096] Endgame KQN-KQN} Qd1+ {[%emt 0:01:30]} 30. Kh2 {[%emt 0:00:06]} Qxc2 {[%emt 0:00:30]} 31. f3 {[%emt 0:01:05]} c5 {[%emt 0:02:30]} 32. h4 {[%emt 0:00:48]} c4 {[%emt 0:01:30]} 33. bxc4 {[%emt 0:00:11]} Qxc4 {[%emt 0:01:30]} ({Not} 33... Qxa4 34. Qc3 $17) 34. Qa3 {[%emt 0:03:19]} b6 {[%emt 0:01:30]} 35. h5 {[%emt 0:01:29]} (35. Qd6 $17) 35... Qc5 {[%emt 0:00:30]} 36. Qb2 {[%emt 0:01:34]} (36. Qxc5 $17 {keeps fighting.} bxc5 37. hxg6) 36... Nxh5 {[%emt 0:00:30]} 37. Nxh5+ {[%emt 0:00:09]} gxh5 {[%emt 0:00:30] KQ-KQ} 38. Qd2 {[%emt 0:01:35]} Qd4 {[%emt 0:02:30]} 39. Qe1 {[%emt 0:02:15]} (39. Qc2 {was the only defense.}) 39... Qxa4 {[%emt 0:04:30]} 40. Qg3+ {[%emt 0:00:00]} Kf6 {[%emt 0:00:00]} 41. Qh4+ {[%emt 0:00:52]} Ke6 {[%emt 0:01:00]} 42. Qxh5 {[%emt 0:00:30]} Qd7 $2 {[%emt 0:02:30]} (42... Qb3 $19 {and Black stays clearly on top. Threatens to win with ...a4.} 43. Qxh6+ Kd7 44. Qd2+ Kc8) 43. Qxh6+ $17 {[%emt 0:01:30]} f6 {[%emt 0:00:00]} 44. Qf8 {[%emt 0:06:30] Prevents Qd8.} a4 {[%emt 0:03:00]} 45. Qg8+ $2 {[%emt 0:01:30][%mdl 8192] [#]} (45. g4 $17 {was worth a try.}) 45... Kd6 $1 $19 {[%emt 0:03:30]} 46. Qf8+ {[%emt 0:00:30]} Ke6 $2 {[%emt 0:01:30]} ({Better is} 46... Qe7 $19 47. Qa8 Qh7+ 48. Kg3 Qd7) 47. Qg8+ $11 {[%emt 0:00:30] The position is equal.} Qf7 {[%emt 0:00:30]} 48. Qb8 {[%emt 0:04:30]} Qe7 {[%emt 0:03:30]} 49. Qxb6+ {[%emt 0:00:30]} Kf7 {[%emt 0:00:30]} 50. Qa5 {[%emt 0:04:13]} a3 {[%emt 0:00:00]} 51. g4 {[%emt 0:02:20]} Qd6 {[%emt 0:01:00]} 52. Kg3 {[%emt 0:00:27]} Qd3 {[%emt 0:00:30]} 53. g5 {[%emt 0:01:55]} fxg5 {[%emt 0:05:30]} 54. Qxe5 {[%emt 0:03:04]} Qe3 {[%emt 0:01:30][%cal Oe3f4] ( -> ...Qf4+!)} 55. Qd5+ {[%emt 0:01:33]} Ke7 {[%emt 0:00:30]} 56. Qb7+ {[%emt 0:01:58]} Kd6 {[%emt 0:00:30]} 57. Qa6+ {[%emt 0:00:28]} Kc7 {[%emt 0:00:30] ...Qf4+ is the strong threat.} 58. Qa5+ {[%emt 0:00:54]} Kb7 {[%emt 0:03:30]} 59. Qb4+ {[%emt 0:02:46]} Kc6 {[%emt 0:01:30]} 60. Qa4+ {[%emt 0:00:28]} Kd6 {[%emt 0:02:30]} 61. Qa6+ {[%emt 0:00:25]} Kc7 {[%emt 0:02:30] Hoping for ...Qf4+.} 62. Qc4+ {[%emt 0:00:48] White happily takes the draw.  Weighted Error Value: White=0.29 (precise) /Black=0.29 (precise)} 1/2-1/2

[Event "FIDE WSTC-50-65 2022"]
[Site "Acqui Terme"]
[Date "2022.06.23"]
[Round "4.1"]
[White "Adams, Michael"]
[Black "Kaidanov, Gregory"]
[Result "1-0"]
[ECO "C50"]
[WhiteElo "2698"]
[BlackElo "2556"]
[Annotator "TA"]
[PlyCount "133"]
[EventDate "2022.06.20"]
[EventType "team-tourn"]
[EventCountry "ITA"]
[SourceTitle "playchess.com"]
[Source "ChessBase"]
[SourceQuality "1"]
[TimeControl "40/5400+30:1800+30"]

{[%evp 9,133,12,25,21,15,13,23,11,16,8,7,5,8,9,20,0,11,0,12,16,8,0,0,0,4,-7,16,0,7,0,2,-13,-11,-23,-24,-23,-17,-35,-25,-19,-17,-33,-37,-31,0,0,0,0,0,0,0,0,0,0,0,0,0,0,0,0,1,2,2,8,1,1,6,10,9,10,42,9,9,6,33,6,122,50,49,50,58,54,44,39,96,77,81,85,151,148,115,25,25,28,24,24,24,24,24,24,67,68,68,8,69,24,24,75,31,28,1034,1032,1008,905,2418,2048,2469,2198,1169,982,29976,29974,29977,29972,29979,29979]} 1. e4 {[%emt 0:01:00]} e5 {[%emt 0:01:00]} 2. Nf3 {[%emt 0:00:00]} Nc6 {[%emt 0:00:00]} 3. Bc4 {[%emt 0:00:00]} Nf6 {[%emt 0:00:00]} 4. d3 {[%emt 0:00:00]} Bc5 {[%emt 0:00:30]} 5. a4 {[%emt 0:00:00]} O-O {[%emt 0:01:30]} 6. Bg5 {[%emt 0:01:30] C50: Hungarian Defence and Giuoco Pianissimo.} h6 {[%emt 0:04:30]} 7. Bh4 {[%emt 0:01:30]} Be7 {[%emt 0:02:30]} 8. Nc3 {[%emt 0:03:30] White has an edge.} d6 {[%emt 0:04:30] [#]} 9. Bxf6 $146 {[%emt 0:02:30]} ({Predecessor:} 9. a5 a6 10. h3 Be6 11. Bxf6 Bxf6 12. Nd5 Nb8 13. O-O Nd7 14. b4 c6 15. Ne3 {0-1 (43) Naiditsch,A (2700)-Gledura,B (2602) Chartres 2017}) 9... Bxf6 {[%emt 0:00:30]} 10. Nd5 {[%emt 0:00:00]} Nb8 {[%emt 0:06:30]} 11. O-O {[%emt 0:07:00]} Be6 {[%emt 0:03:30]} 12. Ne3 {[%emt 0:04:30]} Re8 {[%emt 0:05:30]} 13. a5 {[%emt 0:01:30]} c6 {[%emt 0:00:30]} 14. Bxe6 {[%emt 0:11:30]} Rxe6 {[%emt 0:00:00]} 15. c3 {[%emt 0:00:30]} Na6 {[%emt 0:02:00]} 16. Qc2 {[%emt 0:01:30]} Qd7 {[%emt 0:07:30]} 17. Rad1 {[%emt 0:09:30]} Ree8 {[%emt 0:04:30]} 18. h3 {[%emt 0:03:30]} g6 {[%emt 0:01:30]} 19. Rfe1 {[%emt 0:03:30]} Bg7 {[%emt 0:01:30]} 20. Re2 {[%emt 0:07:30]} Rad8 {[%emt 0:02:30]} 21. d4 {[%emt 0:06:30]} exd4 {[%emt 0:01:30]} 22. Nxd4 {[%emt 0:05:30]} Nc5 {[%emt 0:03:30]} 23. Nf1 {[%emt 0:03:30]} h5 {[%emt 0:03:30]} 24. Nf3 {[%emt 0:02:30]} Qe7 {[%emt 0:06:30]} 25. Rde1 {[%emt 0:00:30]} Ne6 {[%emt 0:04:30]} 26. h4 {[%emt 0:02:30]} Qf6 {[%emt 0:06:30]} 27. e5 {[%emt 0:03:23]} dxe5 {[%emt 0:00:30]} 28. Rxe5 {[%emt 0:00:17]} Nc7 {[%emt 0:03:30]} 29. Rxe8+ {[%emt 0:03:40]} Rxe8 {[%emt 0:00:30]} 30. Rxe8+ {[%emt 0:02:06]} Nxe8 {[%emt 0:00:00]} 31. Ne3 {[%emt 0:00:16]} Qe7 {[%emt 0:05:00]} 32. Qd3 {[%emt 0:01:41]} Qd6 {[%emt 0:04:30]} 33. Qe2 {[%emt 0:05:33]} Nc7 {[%emt 0:03:01]} 34. Nc4 {[%emt 0:01:02]} Qd7 {[%emt 0:04:39]} 35. Ng5 {[%emt 0:01:41]} Nd5 {[%emt 0:03:10]} 36. g3 {[%emt 0:00:31]} Bf6 {[%emt 0:01:34]} 37. Ne5 {[%emt 0:02:19]} Bxe5 {[%emt 0:00:15]} 38. Qxe5 $11 {[%emt 0:00:03][%mdl 4096] Endgame KQN-KQN} Qc7 {[%emt 0:02:07] Prevents Qb8+.} 39. Qe4 {[%emt 0:02:19]} a6 {[%emt 0:01:57]} 40. Kg2 {[%emt 0:00:00]} Nf6 {[%emt 0:00:00]} 41. Qd4 {[%emt 0:01:39]} Ne8 {[%emt 0:05:47]} (41... Qe7 {is interesting.} 42. Kf3 c5 43. Qf4 Ng4) 42. b4 {[%emt 0:10:30]} Qd6 {[%emt 0:06:30]} (42... Nd6 $11 {remains equal.}) 43. Ne4 {[%emt 0:05:09] White is more active.} (43. Qxd6 $1 $16 {White threatens Qd7 and mate.} Nxd6 44. Kf3) 43... Qe7 $14 {[%emt 0:08:22]} 44. Kf3 {[%emt 0:03:28]} f6 {[%emt 0:02:04]} 45. Qe3 {[%emt 0:05:40] Nc5 is the strong threat.} Nd6 {[%emt 0:02:55]} 46. Nc5 {[%emt 0:01:10]} Kf7 {[%emt 0:01:40]} (46... Qxe3+ $14 47. fxe3 Kf8) 47. Qxe7+ $1 $16 {[%emt 0:03:43]} ({Much worse is} 47. Qh6 Nf5 48. Qf4 (48. Qh7+ Ng7 $11) 48... Nd6 $11) 47... Kxe7 {[%emt 0:00:02] KN-KN} 48. Kf4 {[%emt 0:00:26]} Nb5 {[%emt 0:02:03]} (48... Kf7 $142) 49. Nxb7 {[%emt 0:00:55]} Nxc3 {[%emt 0:00:05] [#]} 50. Nc5 {[%emt 0:00:29]} ({White should play} 50. Ke3 $1 $16) 50... Nd5+ $11 {[%emt 0:00:05]} 51. Ke4 {[%emt 0:00:04]} Nxb4 {[%emt 0:00:05]} 52. Kd4 {[%emt 0:00:04]} Kd6 {[%emt 0:04:40]} 53. Kc4 {[%emt 0:00:19][%mdl 64] Deflection} Nc2 {[%emt 0:00:25]} 54. Nxa6 {[%emt 0:00:21]} Na3+ {[%emt 0:00:22]} 55. Kb4 {[%emt 0:00:25]} Nc2+ {[%emt 0:00:13]} 56. Kc3 {[%emt 0:00:52]} (56. Kb3 $14 Nd4+ 57. Kc4) 56... Na3 {[%emt 0:00:14]} (56... Ne1 $11) 57. Nb4 {[%emt 0:01:17] Strongly threatening Nd3.} (57. Kb3 $5 {[%cal Rb3a3]} Nb5 58. Kb4 $16) 57... c5 {[%emt 0:00:14]} 58. Nd3 {[%emt 0:01:05] aiming for Nf4.} g5 {[%emt 0:00:16] Inhibits Nf4.} 59. a6 {[%emt 0:01:42][%cal Og3g4] Black must now prevent g4!} Kd5 $2 {[%emt 0:00:19][%mdl 8192] A mistake that costs the game.} (59... Kc6 $11) 60. g4 $18 {[%emt 0:01:51]} Nb5+ {[%emt 0:00:40]} 61. Kd2 {[%emt 0:00:17]} hxg4 {[%emt 0:00:34] [#]} 62. h5 $1 {[%emt 0:00:07]} Ke6 {[%emt 0:00:14]} 63. Nxc5+ {[%emt 0:00:18]} Kf7 {[%emt 0:00:22]} 64. Ne4 {[%emt 0:00:19] Threatens to win with Kd3.} Kg7 {[%emt 0:00:46]} 65. Kd3 {[%emt 0:00:35] White mates.} Na7 {[%emt 0:04:57]} 66. Ng3 {[%emt 0:00:34]} Nc8 {[%emt 0:00:28]} 67. Nf5+ {[%emt 0:00:24] Weighted Error Value: White=0.10 (very precise) /Black=0.14 (very precise)} 1-0